Workbook

Sheet Money Leaders
A1: "2023 Money Leaderboard"
A2: Position | B2: No. | C2: Player | D2: 2023-01-28 | E2: 2023-03-12 | F2: 2023-05-20 | G2: 2023-07-29 | H2: 2023-09-23 | I2: 2023-09-24 | J2: 2023-11-04 | K2: MP | L2: GOY | M2: Total
A3: 1 | B3: 1 | C3: Escobedo, Marco | E3: 142 | F3: 130.1666667 | H3: 53.21428571 | J3: 12.5 | K3: 122 | L3: 113 | M3: =SUM(D3:L3) -> 572.8809524
A4: 2 | B4: 2 | C4: Rose, Jack | G4: 109.5 | H4: 113.2142857 | J4: 8 | K4: 19 | L4: 75 | M4: =SUM(D4:L4) -> 324.7142857
A5: 3 | B5: 3 | C5: Ornelas, Eddie | G5: 98.83333333 | H5: 15 | I5: 65.75 | K5: 27 | L5: 113 | M5: =SUM(D5:L5) -> 319.5833333
A6: 4 | B6: 4 | C6: Havstad, Steve | D6: 39.16666667 | F6: 24.16666667 | G6: 22 | H6: 15 | J6: 25 | K6: 76 | L6: 25 | M6: =SUM(D6:L6) -> 226.3333333
A7: 5 | B7: 5 | C7: Kozachenko, Jon | E7: 25.5 | G7: 33.33333333 | H7: 37.85714286 | I7: 40 | J7: 24 | K7: 27 | M7: =SUM(D7:L7) -> 187.6904762
A8: 6 | B8: 6 | C8: Cordova, Stephen | I8: 80 | K8: 53 | L8: 45 | M8: =SUM(D8:L8) -> 178
A9: 7 | B9: 7 | C9: Escobedo, Hector | H9: 30 | I9: 53.25 | J9: 12.5 | L9: 60 | M9: =SUM(D9:L9) -> 155.75
A10: 8 | B10: 8 | C10: Rose, Steven | D10: 18.33333333 | E10: 117.5 | M10: =SUM(D10:L10) -> 135.8333333
A11: 9 | B11: 9 | C11: Doden, Jeff | D11: 53.33333333 | F11: 37 | L11: 45 | M11: =SUM(D11:L11) -> 135.3333333
A12: T10 | B12: 10 | C12: Tenorio, Noe | J12: 80 | M12: =SUM(D12:L12) -> 80
A13: T10 | B13: 11 | C13: Noriega, Terry | D13: 65 | F13: 15 | M13: =SUM(D13:L13) -> 80
A14: 12 | B14: 12 | C14: Iwashita, Zachary | H14: 7.857142857 | I14: 12 | J14: 56 | M14: =SUM(D14:L14) -> 75.85714286
A15: 13 | B15: 13 | C15: Basham, Baret | D15: 69.16666667 | M15: =SUM(D15:L15) -> 69.16666667
A16: 14 | B16: 14 | C16: Nanos, Mark | F16: 67.66666667 | M16: =SUM(D16:L16) -> 67.66666667
A17: 15 | B17: 15 | C17: Jones, Gary | G17: 19 | I17: 10 | J17: 12 | L17: 25 | M17: =SUM(D17:L17) -> 66
A18: 16 | B18: 16 | C18: Fleming, Richard | G18: 60 | M18: =SUM(D18:L18) -> 60
A19: 17 | B19: 17 | C19: Wheelock, Bob | D19: 20 | I19: 15 | K19: 19 | M19: =SUM(D19:L19) -> 54
A20: 18 | B20: 18 | C20: Mariano, Joe | F20: 15 | K20: 38 | M20: =SUM(D20:L20) -> 53
A21: 19 | B21: 19 | C21: Sullivan, Matt | E21: 50 | M21: =SUM(D21:L21) -> 50
A22: 20 | B22: 20 | C22: Blossey, Ryan | H22: 22.85714286 | I22: 12 | M22: =SUM(D22:L22) -> 34.85714286
A23: 21 | B23: 21 | C23: Tuliau, Brian | E23: 30 | M23: =SUM(D23:L23) -> 30
A24: 22 | B24: 22 | C24: Mallory, Mason | H24: 7.5 | I24: 20 | M24: =SUM(D24:L24) -> 27.5
A25: T23 | B25: 23 | C25: McCoy, Frank | D25: 25 | M25: =SUM(D25:L25) -> 25
A26: T23 | B26: 24 | C26: Wiblin, Brent | J26: 25 | M26: =SUM(D26:L26) -> 25
A27: T25 | B27: 25 | C27: Hawkins, Chuck | G27: 22 | M27: =SUM(D27:L27) -> 22
A28: T25 | B28: 26 | C28: Kurt, Byron | G28: 22 | M28: =SUM(D28:L28) -> 22
A29: 27 | B29: 27 | C29: Matthews, Keith | F29: 21 | M29: =SUM(D29:L29) -> 21
A30: T28 | B30: 28 | C30: Doden, Connor | I30: 20 | M30: =SUM(D30:L30) -> 20
A31: T28 | B31: 29 | C31: Escobedo, Sergio | G31: 20 | M31: =SUM(D31:L31) -> 20
A32: T28 | B32: 30 | C32: Havstad, Peter | D32: 20 | M32: =SUM(D32:L32) -> 20
A33: 31 | B33: 31 | C33: Eccles, Jeff | H33: 7.5 | I33: 12 | M33: =SUM(D33:L33) -> 19.5
A34: 32 | B34: 32 | C34: Doden, Scott | G34: 13.33333333 | M34: =SUM(D34:L34) -> 13.33333333
A35: T33 | B35: 33 | C35: Aldrian, Mark | M35: =SUM(D35:L35) -> 0
A36: T33 | B36: 34 | C36: Cabey, Jim | M36: =SUM(D36:L36) -> 0
A37: T33 | B37: 35 | C37: Faillace, Karen | M37: =SUM(D37:L37) -> 0
A38: T33 | B38: 36 | C38: Graham, Travis | M38: 0
A39: T33 | B39: 37 | C39: Holzrichter, Geoff | M39: 0
A40: T33 | B40: 38 | C40: Ikeda, Blaine | M40: 0
A41: T33 | B41: 39 | C41: Jacinto, Erasmo | M41: 0
A42: T33 | B42: 40 | C42: Karnoff, Jon | M42: 0
A43: T33 | B43: 41 | C43: Nagel, Rich | M43: 0
A44: T33 | B44: 42 | C44: O'Brien, Nick | M44: 0
A45: T33 | B45: 43 | C45: O'Brien, Scott | M45: 0
A46: T33 | B46: 44 | C46: Reyes, Mark | M46: 0
A47: T33 | B47: 45 | C47: Saito, Jeff | M47: 0
A48: T33 | B48: 46 | C48: Salvucci, John | M48: 0
A49: T33 | B49: 47 | C49: Thompson, Dan | M49: 0
A50: T33 | B50: 48 | M50: 0
A51: T33 | B51: 49 | M51: 0
A52: T33 | B52: 50 | M52: 0
A53: T33 | B53: 51 | M53: 0
A54: T33 | B54: 52 | M54: 0
A55: T33 | B55: 53 | M55: 0
A56: T33 | B56: 54 | M56: 0
A57: T33 | B57: 55 | M57: 0
A58: T33 | B58: 56 | M58: 0
A59: T33 | B59: 57 | M59: 0
A60: T33 | B60: 58 | M60: 0
A61: T33 | B61: 59 | M61: 0
A62: T33 | B62: 60 | M62: 0
A63: T33 | B63: 61 | M63: 0
A64: T33 | B64: 62 | M64: 0
A65: T33 | B65: 63 | M65: 0
A66: T33 | B66: 64 | M66: 0
A67: T33 | B67: 65 | M67: 0
A68: T33 | B68: 66 | M68: 0
A69: T33 | B69: 67 | M69: 0
A70: T33 | B70: 68 | M70: 0
A71: T33 | B71: 69 | M71: 0
A72: T33 | B72: 70 | M72: 0
A73: T33 | B73: 71 | M73: 0
A74: T33 | B74: 72 | M74: 0
A75: T33 | B75: 73 | M75: 0
A76: T33 | B76: 74 | M76: 0
A77: T33 | B77: 75 | M77: 0
A78: Totals | D78: 310 | E78: 365 | F78: 310 | G78: 420 | H78: 310 | I78: 340 | J78: 255 | K78: 0 | L78: 0 | M78: 2310

Sheet GOY
A1: "2023 Golfer of the Year"
A2: Position | B2: No. | C2: Player | D2: 2023-01-28 | E2: 2023-03-12 | F2: 2023-05-20 | G2: 2023-07-29 | H2: 2023-09-23 | I2: 2023-09-24 | J2: 2023-11-04 | K2: Points
A3: T1 | B3: 1 | C3: Escobedo, Marco | E3: 7 | F3: 10 | H3: 3 | K3: 20
A4: T1 | B4: 2 | C4: Ornelas, Eddie | E4: 4 | G4: 10 | I4: 6 | K4: 20
A5: 3 | B5: 3 | C5: Rose, Jack | G5: 7 | H5: 10 | I5: 2 | K5: 19
A6: 4 | B6: 4 | C6: Escobedo, Hector | H6: 7 | I6: 6 | J6: 3 | K6: 16
A7: T5 | B7: 5 | C7: Cordova, Stephen | H7: 3 | I7: 10 | K7: 13
A8: T5 | B8: 6 | C8: Doden, Jeff | D8: 6 | F8: 7 | K8: 13
A9: T7 | B9: 7 | C9: Havstad, Steve | D9: 6 | G9: 5 | K9: 11
A10: T7 | B10: 8 | C10: Jones, Gary | G10: 3 | H10: 3 | I10: 2 | J10: 3 | K10: 11
A11: 9 | B11: 9 | C11: Basham, Baret | D11: 10 | G11: 0.5 | K11: 10.5
A12: T10 | B12: 10 | C12: Rose, Steven | E12: 10 | K12: 10
A13: T10 | B13: 11 | C13: Tenorio, Noe | J13: 10 | K13: 10
A14: 12 | B14: 12 | C14: Kozachenko, Jon | F14: 2 | J14: 7 | K14: 9
A15: 13 | B15: 13 | C15: Matthews, Keith | F15: 5 | K15: 5
A16: T14 | B16: 14 | C16: Mariano, Joe | E16: 4 | K16: 4
A17: T14 | B17: 15 | C17: Wheelock, Bob | D17: 2 | F17: 2 | K17: 4
A18: 16 | B18: 16 | C18: Iwashita, Zachary | J18: 3 | K18: 3
A19: 17 | B19: 17 | C19: McCoy, Frank | D19: 2 | K19: 2
A20: 18 | B20: 18 | C20: Sullivan, Matt | E20: 1 | K20: 1
A21: 19 | B21: 19 | C21: Hawkins, Chuck | G21: 0.5 | K21: 0.5
A22: T20 | B22: 20 | C22: Aldrian, Mark | K22: 0
A23: T20 | B23: 21 | C23: Cabey, Jim | K23: 0
A24: T20 | B24: 22 | C24: Escobedo, Sergio | K24: 0
A25: T20 | B25: 23 | C25: Faillace, Karen | K25: 0
A26: T20 | B26: 24 | C26: Graham, Travis | K26: 0
A27: T20 | B27: 25 | C27: Havstad, Peter | K27: 0
A28: T20 | B28: 26 | C28: Holzrichter, Geoff | K28: 0
A29: T20 | B29: 27 | C29: Ikeda, Blaine | K29: 0
A30: T20 | B30: 28 | C30: Jacinto, Erasmo | K30: 0
A31: T20 | B31: 29 | C31: Karnoff, Jon | K31: 0
A32: T20 | B32: 30 | C32: Nagel, Rich | K32: 0
A33: T20 | B33: 31 | C33: O'Brien, Nick | K33: 0
A34: T20 | B34: 32 | C34: O'Brien, Scott | K34: 0
A35: T20 | B35: 33 | C35: Reyes, Mark | K35: 0
A36: T20 | B36: 34 | C36: Saito, Jeff | K36: 0
A37: T20 | B37: 35 | C37: Salvucci, John | K37: 0
A38: T20 | B38: 36 | C38: Thompson, Dan | K38: 0
A39: T20 | B39: 37 | C39: Tuliau, Brian | K39: 0
A40: T20 | B40: 38 | K40: 0
A41: T20 | B41: 39 | K41: 0
A42: T20 | B42: 40 | K42: 0
A43: T20 | B43: 41 | K43: 0
A44: T20 | B44: 42 | K44: 0
A45: T20 | B45: 43 | K45: 0
A46: T20 | B46: 44 | K46: 0
A47: T20 | B47: 45 | K47: 0
A48: T20 | B48: 46 | K48: 0
A49: T20 | B49: 47 | K49: 0
A50: T20 | B50: 48 | K50: 0
A51: T20 | B51: 49 | K51: 0
A52: T20 | B52: 50 | K52: 0
A53: T20 | B53: 51 | K53: 0
A54: T20 | B54: 52 | K54: 0
A55: T20 | B55: 53 | K55: 0
A56: T20 | B56: 54 | K56: 0
A57: T20 | B57: 55 | K57: 0
A58: T20 | B58: 56 | K58: 0
A59: T20 | B59: 57 | K59: 0
A60: T20 | B60: 58 | K60: 0
A61: T20 | B61: 59 | K61: 0
A62: T20 | B62: 60 | K62: 0
A63: T20 | B63: 61 | K63: 0
A64: T20 | B64: 62 | K64: 0
A65: T20 | B65: 63 | K65: 0
A66: T20 | B66: 64 | K66: 0
A67: T20 | B67: 65 | K67: 0
A68: T20 | B68: 66 | K68: 0
A69: T20 | B69: 67 | K69: 0
A70: T20 | B70: 68 | K70: 0
A71: T20 | B71: 69 | K71: 0
A72: T20 | B72: 70 | K72: 0
A73: T20 | B73: 71 | K73: 0
A74: T20 | B74: 72 | K74: 0
A75: T20 | B75: 73 | K75: 0
A76: T20 | B76: 74 | K76: 0
A77: T20 | B77: 75 | K77: 0
D78: 26 | E78: 26 | F78: 26 | G78: 26 | H78: 26 | I78: 26 | J78: 26

Sheet Match Play
A1: "2023 Match Play Championship"
A2: "A" Flight
A3: Player | B3: Record | E3: 2023-01-28 | F3: 2023-03-12 | G3: 2023-05-20 | H3: 2023-07-29 | I3: 2023-09-23 | J3: 2023-09-24 | K3: Current Points | L3: Matches Left | M3: Possible Points | N3: Tiebreaker (GOY Points)
B4: W | C4: L | D4: T
A5: Havstad, Steve | B5: 3 | C5: 0 | D5: 1 | E5: W | F5: T | G5: W | H5: W | K5: 7 | L5: 0 | M5: 7 | N5: 11 | P5: Havstad, Steve (3 - 0 - 1)
A6: Escobedo, Marco | B6: 2 | C6: 1 | D6: 1 | E6: L | F6: W | G6: W | I6: T | K6: 5 | L6: 0 | M6: 5 | N6: 20 | Q6: Havstad, Steve (4 & 2)
A7: Ornelas, Eddie | B7: 2 | C7: 2 | D7: 0 | E7: L | F7: W | H7: W | I7: L | K7: 4 | L7: 0 | M7: 4 | N7: 20 | P7: Mariano, Joe (3 - 1 - 0)
A8: Rose, Jack | B8: 2 | C8: 1 | D8: 0 | H8: W | I8: W | J8: L | K8: 4 | L8: 0 | M8: 4 | N8: 19 | R8: Escobedo, Marco (4 & 3)
A9: Doden, Jeff | B9: 2 | C9: 0 | D9: 0 | F9: W | G9: W | K9: 4 | L9: 0 | M9: 4 | N9: 13 | P9: Escobedo, Marco (2 - 1 - 1)
A10: Rose, Steven | B10: 2 | C10: 0 | D10: 0 | E10: W | F10: W | K10: 4 | L10: 0 | M10: 4 | N10: 10 | Q10: Escobedo, Marco (2nd tie breaker)
A11: Escobedo, Hector | B11: 1 | C11: 1 | D11: 1 | H11: L | I11: T | J11: W | K11: 3 | L11: 0 | M11: 3 | N11: 13 | P11: Cordova, Stephen (3 - 1 - 0)
A12: Jones, Gary | B12: 1 | C12: 2 | D12: 1 | F12: L | H12: W | I12: L | J12: T | K12: 3 | L12: 0 | M12: 3 | N12: 8
A13: Basham, Baret | B13: 1 | C13: 2 | D13: 0 | E13: W | G13: L | H13: L | K13: 2 | L13: 0 | M13: 2 | N13: 10.5
A14: Matthews, Keith | B14: 0 | C14: 2 | D14: 0 | F14: L | G14: L | K14: 0 | L14: 0 | M14: 0 | N14: 5
A15: O'Brien, Nick | B15: 0 | C15: 2 | D15: 0 | F15: L | H15: L | K15: 0 | L15: 0 | M15: 0 | N15: 0
B16: 0 | C16: 0 | D16: 0 | K16: 0 | L16: 0 | M16: 0
B17: 0 | C17: 0 | D17: 0 | K17: 0 | L17: 0 | M17: 0
B18: 0 | C18: 0 | D18: 0 | K18: 0 | L18: 0 | M18: 0
B19: 0 | C19: 0 | D19: 0 | K19: 0 | L19: 0 | M19: 0
A22: "B" Flight
A23: Player | B23: Record | E23: 2023-01-28 | F23: 2023-03-12 | G23: 2023-05-20 | H23: 2023-07-29 | I23: 2023-09-23 | J23: 2023-09-24 | K23: Current Points | L23: Matches Left | M23: Possible Points | N23: Tiebreaker (GOY Points)
B24: W | C24: L | D24: T
A25: Cordova, Stephen | B25: 3 | C25: 1 | D25: 0 | E25: W | F25: L | I25: W | J25: W | K25: 6 | L25: 0 | M25: 6 | N25: 13
A26: Mariano, Joe | B26: 3 | C26: 1 | D26: 0 | E26: L | F26: W | G26: W | H26: W | K26: 6 | L26: 0 | M26: 6 | N26: 4
A27: Kozachenko, Jon | B27: 3 | C27: 1 | D27: 0 | F27: W | G27: W | H27: L | I27: W | K27: 6 | L27: 0 | M27: 6 | N27: 2
A28: Wheelock, Bob | B28: 2 | C28: 1 | D28: 1 | E28: W | G28: W | I28: L | J28: T | K28: 5 | L28: 0 | M28: 5 | N28: 4
A29: McCoy, Frank | B29: 1 | C29: 2 | D29: 0 | E29: W | F29: L | G29: L | K29: 2 | L29: 0 | M29: 2 | N29: 2
A30: Tuliau, Brian | B30: 1 | C30: 1 | D30: 0 | E30: L | F30: W | K30: 2 | L30: 0 | M30: 2 | N30: 0
A31: Escobedo, Sergio | B31: 0 | C31: 2 | D31: 1 | E31: L | F31: T | H31: L | K31: 1 | L31: 0 | M31: 1 | N31: 0
A32: Sullivan, Matt | B32: 0 | C32: 2 | D32: 0 | F32: L | G32: L | K32: 0 | L32: 0 | M32: 0 | N32: 1
A33: Tenorio, Noe | B33: 0 | C33: 2 | D33: 0 | F33: L | G33: L | K33: 0 | L33: 0 | M33: 0 | N33: 0
A34: O'Brien, Scott | B34: 0 | C34: 2 | D34: 0 | F34: L | H34: L | K34: 0 | L34: 0 | M34: 0 | N34: 0
A35: Aldrian, Mark | B35: 0 | C35: 0 | D35: 0 | K35: 0 | L35: 0 | M35: 0 | N35: 0
B36: 0 | C36: 0 | D36: 0 | K36: 0 | L36: 0 | M36: 0
B37: 0 | C37: 0 | D37: 0 | K37: 0 | L37: 0 | M37: 0
B38: 0 | C38: 0 | D38: 0 | K38: 0 | L38: 0 | M38: 0
B39: 0 | C39: 0 | D39: 0 | K39: 0 | L39: 0 | M39: 0

Sheet Winners
C1: HACK ATTACK GOLF CLUB | H1: Wilson Golf Course
C2: Tournament Results | H2: 2023-11-04
A3: Place | B3: Front | C3: Score | D3: Money | E3: Place | F3: Back | G3: Score | H3: Money | I3: Place | J3: Total | K3: Score | L3: Money
A4: 1 | B4: Iwashita, Zachary | C4: 36 | D4: 24 | E4: 1 | F4: Tenorio, Noe | G4: 29.5 | H4: 24 | I4: 1 | J4: Tenorio, Noe | K4: 67 | L4: 30
A5: T2 | B5: Tenorio, Noe | C5: 37.5 | D5: 6 | E5: 2 | F5: Jones, Gary | G5: 31.5 | H5: 12 | I5: 2 | J5: Kozachenko, Jon | K5: 71 | L5: 18
A6: T2 | B6: Kozachenko, Jon | C6: 37.5 | D6: 6
A16: Hole | B16: A-Skins | C16: Score | D16: Money | E16: Hole | F16: B-Skins | G16: Score | H16: Money | I16: Place | J16: Putts | K16: Total | L16: Money | Q16: Hole | R16: Par | S16: Par-3s
A17: 1 | B17: Iwashita, Zachary | C17: Birdie-4 | D17: 8 | E17: 1 | I17: T1 | J17: Escobedo, Hector | K17: 27 | L17: 12.5 | Q17: 1 | R17: 5
A18: 2 | E18: 2 | I18: T1 | J18: Escobedo, Marco | K18: 27 | L18: 12.5 | Q18: 2 | R18: 4
A19: 3 | E19: 3 | Q19: 3 | R19: 3 | S19: 3
A20: 4 | E20: 4 | Q20: 4 | R20: 4
A21: 5 | E21: 5 | Q21: 5 | R21: 4
A22: 6 | B22: Iwashita, Zachary | C22: Birdie-3 | D22: 8 | E22: 6 | Q22: 6 | R22: 4
A23: 7 | E23: 7 | Q23: 7 | R23: 4
A24: 8 | B24: Iwashita, Zachary | C24: Birdie-3 | D24: 8 | E24: 8 | Q24: 8 | R24: 4
A25: 9 | E25: 9 | I25: Hole | J25: CPs | L25: Money | Q25: 9 | R25: 5
A26: 10 | B26: Rose, Jack | C26: Birdie-3 | D26: 8 | E26: 10 | I26: 3 | J26: Havstad, Steve | L26: 25 | Q26: 10 | R26: 4
A27: 11 | E27: 11 | I27: 11 | Q27: 11 | R27: 3 | S27: 11
A28: 12 | E28: 12 | I28: 15 | J28: Wiblin, Brent | L28: 25 | Q28: 12 | R28: 4
A29: 13 | E29: 13 | Q29: 13 | R29: 4
A30: 14 | E30: 14 | F30: Tenorio, Noe | G30: Birdie-4 | H30: 6.666666667 | Q30: 14 | R30: 5
A31: 15 | B31: Iwashita, Zachary | C31: Birdie-2 | D31: 8 | E31: 15 | F31: Tenorio, Noe | G31: Birdie-2 | H31: 6.666666667 | Q31: 15 | R31: 3 | S31: 15
A32: 16 | E32: 16 | Q32: 16 | R32: 4
A33: 17 | E33: 17 | F33: Tenorio, Noe | G33: Birdie-3 | H33: 6.666666667 | Q33: 17 | R33: 4
A34: 18 | E34: 18 | Q34: 18 | R34: 4
J35: Aldrian, Mark
J36: Basham, Baret
J37: Cabey, Jim
J38: Cordova, Stephen
J39: Doden, Jeff
J40: Escobedo, Hector
J41: Escobedo, Marco
J42: Escobedo, Sergio
J43: Faillace, Karen
J44: Graham, Travis
J45: Havstad, Peter
J46: Havstad, Steve
J47: Hawkins, Chuck
J48: Holzrichter, Geoff
J49: Ikeda, Blaine
J50: Iwashita, Zachary
J51: Jacinto, Erasmo
J52: Jones, Gary
J53: Karnoff, Jon
J54: Kozachenko, Jon
J55: Mariano, Joe
J56: Matthews, Keith
J57: McCoy, Frank
J58: Nagel, Rich
J59: O'Brien, Nick
J60: O'Brien, Scott
J61: Ornelas, Eddie
J62: Reyes, Mark
J63: Rose, Jack
J64: Rose, Steven
J65: Saito, Jeff
J66: Salvucci, John
J67: Sullivan, Matt
J68: Tenorio, Noe
J69: Thompson, Dan
J70: Tuliau, Brian
J71: Wheelock, Bob
J72: 0
J73: Henriksen, Will
J74: Jones, Trenton
J75: Stafford, Damian
J76: Wiblin, Brent
J77: 0
J78: 0
J79: 0
J80: 0
J81: 0
J82: 0
J83: 0
J84: 0
J85: 0
J86: 0
J87: 0
J88: 0
J89: 0
J90: 0
J91: 0
J92: 0
J93: 0
J94: 0
J95: 0
J96: 0
J97: 0
J98: 0
J99: 0
J100: 0
J101: 0
J102: 0
J103: 0
J104: 0
J105: 0
J106: 0
J107: 0
J108: 0
J109: 0
V110: 1 | W110: 2 | X110: 3 | Y110: 4 | Z110: 5 | AA110: 6 | AB110: 7 | AC110: 8 | AD110: 9 | AE110: 10 | AF110: 11 | AG110: 12 | AH110: 13 | AI110: 14 | AJ110: 15 | AK110: 16 | AL110: 17 | AM110: 18 | AP110: 1 | AQ110: 2 | AR110: 3 | AS110: 4 | AT110: 5 | AU110: 6 | AV110: 7 | AW110: 8 | AX110: 9 | AY110: 10 | AZ110: 11 | BA110: 12 | BB110: 13 | BC110: 14 | BD110: 15 | BE110: 16 | BF110: 17 | BG110: 18
U111: A-Skins | V111: 5 | W111: 4 | X111: 3 | Y111: 4 | Z111: 4 | AA111: 4 | AB111: 4 | AC111: 4 | AD111: 5 | AE111: 4 | AF111: 3 | AG111: 4 | AH111: 4 | AI111: 5 | AJ111: 3 | AK111: 4 | AL111: 4 | AM111: 4 | AO111: B-Skins | AP111: 5 | AQ111: 4 | AR111: 3 | AS111: 4 | AT111: 4 | AU111: 4 | AV111: 4 | AW111: 4 | AX111: 5 | AY111: 4 | AZ111: 3 | BA111: 4 | BB111: 4 | BC111: 5 | BD111: 3 | BE111: 4 | BF111: 4 | BG111: 4
A112: No. | B112: Putts | C112: Total | E112: No. | F112: Front | G112: Score | I112: No. | J112: Back | K112: Score | M112: No. | N112: Total | O112: Score | T112: 1 | U112: Jones, Gary | AH112: 3 | AN112: 1 | AO112: Mariano, Joe
A113: 1 | B113: Escobedo, Hector | C113: 27 | E113: 1 | F113: Iwashita, Zachary | G113: 36 | I113: 1 | J113: Tenorio, Noe | K113: 29.5 | M113: 1 | N113: Tenorio, Noe | O113: 67 | T113: 2 | U113: Iwashita, Zachary | V113: 4 | Z113: 3 | AA113: 3 | AC113: 3 | AI113: 4 | AJ113: 2 | AM113: 3 | AN113: 2 | AO113: Cordova, Stephen
A114: 2 | B114: Escobedo, Marco | C114: 27 | E114: 2 | F114: Tenorio, Noe | G114: 37.5 | I114: 2 | J114: Jones, Gary | K114: 31.5 | M114: 2 | N114: Kozachenko, Jon | O114: 71 | T114: 3 | U114: Havstad, Steve | AN114: 3 | AO114: Escobedo, Sergio
A115: 3 | B115: Tenorio, Noe | C115: 28 | E115: 3 | F115: Kozachenko, Jon | G115: 37.5 | I115: 3 | J115: Rose, Jack | K115: 32.5 | M115: 3 | N115: Jones, Gary | O115: 72 | T115: 4 | U115: Kozachenko, Jon | AH115: 3 | AN115: 4 | AO115: Tenorio, Noe | BC115: 4 | BD115: 2 | BF115: 3
A116: 4 | B116: Jones, Gary | C116: 30 | E116: 4 | F116: Escobedo, Hector | G116: 38 | I116: 4 | J116: Kozachenko, Jon | K116: 33.5 | M116: 4 | N116: Escobedo, Hector | O116: 72 | T116: 5 | U116: Escobedo, Marco | Z116: 3 | AD116: 4 | AG116: 3 | AH116: 3 | AN116: 5
A117: 5 | B117: Rose, Steven | C117: 32 | E117: 5 | F117: Rose, Steven | G117: 39 | I117: 5 | J117: Escobedo, Hector | K117: 34 | M117: 5 | N117: Iwashita, Zachary | O117: 72 | T117: 6 | U117: Rose, Steven | AN117: 6
A118: 6 | B118: Kozachenko, Jon | C118: 33 | E118: 6 | F118: Cordova, Stephen | G118: 39 | I118: 6 | J118: Escobedo, Marco | K118: 34.5 | M118: 6 | N118: Escobedo, Marco | O118: 75 | T118: 7 | U118: Rose, Jack | AD118: 4 | AE118: 3 | AG118: 3 | AH118: 3 | AI118: 4 | AM118: 3 | AN118: 7
A119: 7 | B119: Rose, Jack | C119: 34 | E119: 7 | F119: Escobedo, Marco | G119: 40.5 | I119: 7 | J119: Iwashita, Zachary | K119: 36 | M119: 7 | N119: Cordova, Stephen | O119: 75 | T119: 8 | U119: Escobedo, Hector | Z119: 3 | AI119: 4 | AN119: 8
A120: 8 | B120: Havstad, Steve | C120: 34 | E120: 8 | F120: Jones, Gary | G120: 40.5 | I120: 8 | J120: Cordova, Stephen | K120: 36 | M120: 8 | N120: Rose, Steven | O120: 78 | T120: 9 | AN120: 9
A121: 9 | B121: Wiblin, Brent | C121: 34 | E121: 9 | F121: Mariano, Joe | G121: 43 | I121: 9 | J121: Havstad, Steve | K121: 38 | M121: 9 | N121: Rose, Jack | O121: 79 | T121: 10 | AN121: 10
A122: 10 | B122: Cordova, Stephen | C122: 37 | E122: 10 | F122: Havstad, Steve | G122: 44 | I122: 10 | J122: Rose, Steven | K122: 39 | M122: 10 | N122: Havstad, Steve | O122: 82 | T122: 11 | AN122: 11
T123: 12 | AN123: 12
M124: Place | N124: Total | O124: Total | P124: GOY Score | Q124: GOY Pts. | R124: Ties | S124: No. | T124: 13 | AN124: 13
M125: 1 | N125: Tenorio, Noe | O125: 67 | P125: 67 | Q125: 10 | R125: T1 | S125: 0 | T125: 14 | AN125: 14
M126: 2 | N126: Kozachenko, Jon | O126: 71 | P126: 71 | Q126: 7 | R126: T2 | S126: 0 | T126: 15 | AN126: 15
M127: T3 | N127: Jones, Gary | O127: 72 | P127: 72 | Q127: 3 | R127: T3 | S127: 3 | T127: 16 | AN127: 16
M128: T3 | N128: Escobedo, Hector | O128: 72 | P128: 72 | Q128: 3 | R128: T4 | S128: 0 | T128: 17 | AN128: 17
M129: T3 | N129: Iwashita, Zachary | O129: 72 | P129: 72 | Q129: 3 | R129: T5 | S129: 0 | T129: 18 | AN129: 18
N130: Escobedo, Marco | O130: 75 | P130: 75 | T130: 19 | AN130: 19
N131: Cordova, Stephen | O131: 75 | P131: 75 | T131: 20 | AN131: 20
N132: Rose, Steven | O132: 78 | P132: 78 | T132: 21 | AN132: 21
N133: Rose, Jack | O133: 79 | P133: 79 | T133: 22 | AN133: 22
N134: Havstad, Steve | O134: 82 | P134: 82 | T134: 23 | AN134: 23
T135: 24 | AN135: 24
T136: 25 | AN136: 25
T137: 26 | AN137: 26
T138: 27 | AN138: 27
T139: 28 | AN139: 28
T140: 29 | AN140: 29
T141: 30 | AN141: 30
T142: 31 | AN142: 31
T143: 32 | AN143: 32
T144: 33 | AN144: 33
T145: 34 | AN145: 34
T146: 35 | AN146: 35
T147: 36 | AN147: 36
T148: 37 | AN148: 37
T149: 38 | AN149: 38
T150: 39 | AN150: 39
T151: 40 | AN151: 40
T152: 41 | AN152: 41
T153: 42 | AN153: 42
T154: 43 | AN154: 43
T155: 44 | AN155: 44
T156: 45 | AN156: 45
T157: 46 | AN157: 46
T158: 47 | AN158: 47
T159: 48 | AN159: 48
T160: 49 | AN160: 49
T161: 50 | AN161: 50
U162: SKINS (S) | V162: S | AA162: S | AC162: S | AE162: S | AJ162: S | AO162: SKINS (S) | BC162: S | BD162: S | BF162: S
U164: Score | V164: 4 | AA164: 3 | AC164: 3 | AE164: 3 | AJ164: 2 | AO164: Score | BC164: 4 | BD164: 2 | BF164: 3
U166: Position (array) | V166: 2 | AA166: 2 | AC166: 2 | AE166: 7 | AJ166: 2 | AO166: Position (array) | BC166: 4 | BD166: 4 | BF166: 4

Sheet Results (Low Net)
E1: HACK ATTACK GOLF CLUB | R1: Wilson Golf Course
E2: Tournament Results | R2: 2023-11-04
A3: Place | C3: Player | D3: Playing Hdcp. | E3: Match Play | F3: Putts | G3: Front Side (Hole No. / Par) | R3: Back Side (Hole No. / Par) | AC3: Total
G4: 1 | H4: 2 | I4: 3 | J4: 4 | K4: 5 | L4: 6 | M4: 7 | N4: 8 | O4: 9 | P4: Gross | Q4: Net | R4: 10 | S4: 11 | T4: 12 | U4: 13 | V4: 14 | W4: 15 | X4: 16 | Y4: 17 | Z4: 18 | AA4: Gross | AB4: Net | AC4: Gross | AD4: Net
G5: 5 | H5: 4 | I5: 3 | J5: 4 | K5: 4 | L5: 4 | M5: 4 | N5: 4 | O5: 5 | P5: 37 | Q5: - | R5: 4 | S5: 3 | T5: 4 | U5: 4 | V5: 5 | W5: 3 | X5: 4 | Y5: 4 | Z5: 4 | AA5: 35 | AB5: - | AC5: 72 | AD5: -
A6: 1 | B6: 1 | C6: Tenorio, Noe | D6: 17 | E6: - | F6: 28 | G6: 7 | H6: 5 | I6: 4 | J6: 4 | K6: 6 | L6: 4 | M6: 4 | N6: 5 | O6: 7 | P6: 46 | Q6: 37.5 | R6: 5 | S6: 4 | T6: 4 | U6: 5 | V6: 4 | W6: 2 | X6: 5 | Y6: 3 | Z6: 6 | AA6: 38 | AB6: 29.5 | AC6: 84 | AD6: 67
A7: 2 | B7: 2 | C7: Kozachenko, Jon | D7: 13 | E7: - | F7: 33 | G7: 6 | H7: 4 | I7: 6 | J7: 5 | K7: 5 | L7: 4 | M7: 4 | N7: 5 | O7: 5 | P7: 44 | Q7: 37.5 | R7: 5 | S7: 4 | T7: 4 | U7: 3 | V7: 6 | W7: 4 | X7: 4 | Y7: 5 | Z7: 5 | AA7: 40 | AB7: 33.5 | AC7: 84 | AD7: 71
A8: T3 | B8: 3 | C8: Jones, Gary | D8: 11 | E8: - | F8: 30 | G8: 6 | H8: 5 | I8: 4 | J8: 5 | K8: 5 | L8: 5 | M8: 4 | N8: 6 | O8: 6 | P8: 46 | Q8: 40.5 | R8: 4 | S8: 4 | T8: 4 | U8: 3 | V8: 5 | W8: 3 | X8: 4 | Y8: 5 | Z8: 5 | AA8: 37 | AB8: 31.5 | AC8: 83 | AD8: 72
A9: T3 | B9: 4 | C9: Escobedo, Hector | D9: 6 | E9: - | F9: 27 | G9: 5 | H9: 5 | I9: 4 | J9: 5 | K9: 3 | L9: 5 | M9: 5 | N9: 4 | O9: 5 | P9: 41 | Q9: 38 | R9: 4 | S9: 4 | T9: 4 | U9: 4 | V9: 4 | W9: 4 | X9: 4 | Y9: 4 | Z9: 5 | AA9: 37 | AB9: 34 | AC9: 78 | AD9: 72
A10: T3 | B10: 5 | C10: Iwashita, Zachary | D10: -4 | E10: - | F10: - | G10: 4 | H10: 4 | I10: 3 | J10: 4 | K10: 3 | L10: 3 | M10: 5 | N10: 3 | O10: 5 | P10: 34 | Q10: 36 | R10: 5 | S10: 3 | T10: 4 | U10: 5 | V10: 4 | W10: 2 | X10: 4 | Y10: 4 | Z10: 3 | AA10: 34 | AB10: 36 | AC10: 68 | AD10: 72
A11: T6 | B11: 6 | C11: Escobedo, Marco | D11: 5 | E11: AS | F11: 27 | G11: 6 | H11: 5 | I11: 4 | J11: 4 | K11: 3 | L11: 4 | M11: 7 | N11: 6 | O11: 4 | P11: 43 | Q11: 40.5 | R11: 5 | S11: 4 | T11: 3 | U11: 3 | V11: 6 | W11: 3 | X11: 5 | Y11: 4 | Z11: 4 | AA11: 37 | AB11: 34.5 | AC11: 80 | AD11: 75
A12: T6 | B12: 7 | C12: Cordova, Stephen | D12: 16 | E12: AS | F12: 37 | G12: 6 | H12: 6 | I12: 4 | J12: 4 | K12: 6 | L12: 5 | M12: 5 | N12: 6 | O12: 5 | P12: 47 | Q12: 39 | R12: 5 | S12: 5 | T12: 4 | U12: 4 | V12: 5 | W12: 3 | X12: 6 | Y12: 5 | Z12: 7 | AA12: 44 | AB12: 36 | AC12: 91 | AD12: 75
A13: 8 | B13: 8 | C13: Rose, Steven | D13: 6 | E13: - | F13: 32 | G13: 5 | H13: 5 | I13: 4 | J13: 5 | K13: 4 | L13: 5 | M13: 4 | N13: 5 | O13: 5 | P13: 42 | Q13: 39 | R13: 6 | S13: 4 | T13: 4 | U13: 4 | V13: 5 | W13: 4 | X13: 4 | Y13: 7 | Z13: 4 | AA13: 42 | AB13: 39 | AC13: 84 | AD13: 78
A14: 9 | B14: 9 | C14: Rose, Jack | D14: -1 | E14: - | F14: 34 | G14: 6 | H14: 6 | I14: 5 | J14: 5 | K14: 4 | L14: 6 | M14: 5 | N14: 5 | O14: 4 | P14: 46 | Q14: 46.5 | R14: 3 | S14: 3 | T14: 3 | U14: 3 | V14: 4 | W14: 4 | X14: 5 | Y14: 4 | Z14: 3 | AA14: 32 | AB14: 32.5 | AC14: 78 | AD14: 79
A15: 10 | B15: 10 | C15: Havstad, Steve | D15: 10 | E15: 4 and 2 | F15: 34 | G15: 5 | H15: 4 | I15: 3 | J15: 4 | K15: 7 | L15: 5 | M15: 8 | N15: 7 | O15: 6 | P15: 49 | Q15: 44 | R15: 4 | S15: 3 | T15: 5 | U15: 5 | V15: 7 | W15: 4 | X15: 5 | Y15: 5 | Z15: 5 | AA15: 43 | AB15: 38 | AC15: 92 | AD15: 82
A16: 11 | B16: 11 | C16: Mariano, Joe | D16: 16 | E16: lost | F16: 69 | G16: 6 | H16: 6 | I16: 4 | J16: 5 | K16: 5 | L16: 8 | M16: 5 | N16: 6 | O16: 6 | P16: 51 | Q16: 43 | R16: 6 | S16: 4 | T16: 5 | U16: 5 | V16: 6 | W16: 5 | X16: 7 | Y16: 5 | Z16: 5 | AA16: 48 | AB16: 40 | AC16: 99 | AD16: 83
A17: 12 | B17: 12 | C17: Escobedo, Sergio | D17: 17 | E17: - | F17: 41 | G17: 7 | H17: 7 | I17: 7 | J17: 4 | K17: 8 | L17: 5 | M17: 5 | N17: 7 | O17: 8 | P17: 58 | Q17: 49.5 | R17: 6 | S17: 6 | T17: 8 | U17: 6 | V17: 8 | W17: 4 | X17: 7 | Y17: 7 | Z17: 6 | AA17: 58 | AB17: 49.5 | AC17: 116 | AD17: 99
A18: - | B18: 13 | C18: Wiblin, Brent | D18: - | E18: - | F18: 34 | G18: 7 | H18: 4 | I18: 5 | J18: 4 | K18: 6 | L18: 5 | M18: 5 | N18: 6 | O18: 4 | P18: 46 | Q18: - | R18: 5 | S18: 5 | T18: 4 | U18: 5 | V18: 6 | W18: 3 | X18: 5 | Y18: 4 | Z18: 5 | AA18: 42 | AB18: - | AC18: 88 | AD18: -
A19: - | B19: 14 | C19: Stafford, Damian | D19: - | E19: - | F19: 40 | G19: 8 | H19: 5 | I19: 4 | J19: 7 | K19: 10 | L19: 5 | M19: 7 | N19: 8 | O19: 6 | P19: 60 | Q19: - | R19: 6 | S19: 4 | T19: 4 | U19: 5 | V19: 8 | W19: 4 | X19: 7 | Y19: 5 | Z19: 5 | AA19: 48 | AB19: - | AC19: 108 | AD19: -
A20: - | B20: 15 | C20: Jones, Trenton | D20: - | E20: - | F20: 43 | G20: 6 | H20: 7 | I20: 5 | J20: 6 | K20: 5 | L20: 6 | M20: 5 | N20: 5 | O20: 5 | P20: 50 | Q20: - | R20: 3 | S20: 5 | T20: 8 | U20: 5 | V20: 4 | W20: 4 | X20: 9 | Y20: 6 | Z20: 6 | AA20: 50 | AB20: - | AC20: 100 | AD20: -
A21: - | B21: 16 | C21: Henriksen, Will | D21: - | E21: - | G21: 7 | H21: 6 | I21: 4 | J21: 6 | K21: 5 | L21: 5 | M21: 6 | N21: 6 | O21: 6 | P21: 51 | Q21: - | R21: 5 | S21: 4 | T21: 5 | U21: 4 | V21: 5 | W21: 4 | X21: 4 | Y21: 5 | Z21: 4 | AA21: 40 | AB21: - | AC21: 91 | AD21: -
B22: 17
B23: 18
B24: 19
B25: 20
B26: 21
B27: 22
B28: 23
B29: 24
B30: 25
B31: 26
B32: 27
B33: 28
B34: 29
B35: 30
B36: 31
B37: 32
B38: 33
B39: 34
B40: 35
B41: 36
B42: 37
B43: 38
B44: 39
B45: 40
B46: 41
B47: 42
B48: 43
B49: 44
B50: 45
B51: 46
B52: 47
B53: 48
B54: 49
B55: 50

Sheet Results (Pairings)
E1: HACK ATTACK GOLF CLUB | R1: Wilson Golf Course
E2: Tournament Results | R2: 2023-11-04
A3: No. | B3: Player | D3: Playing Hdcp. | E3: Match Play | F3: Putts | G3: Front Side (Hole No. / Par) | R3: Back Side (Hole No. / Par) | AC3: Total
G4: 1 | H4: 2 | I4: 3 | J4: 4 | K4: 5 | L4: 6 | M4: 7 | N4: 8 | O4: 9 | P4: Gross | Q4: Net | R4: 10 | S4: 11 | T4: 12 | U4: 13 | V4: 14 | W4: 15 | X4: 16 | Y4: 17 | Z4: 18 | AA4: Gross | AB4: Net | AC4: Gross | AD4: Net
G5: 5 | H5: 4 | I5: 3 | J5: 4 | K5: 4 | L5: 4 | M5: 4 | N5: 4 | O5: 5 | P5: 37 | Q5: - | R5: 4 | S5: 3 | T5: 4 | U5: 4 | V5: 5 | W5: 3 | X5: 4 | Y5: 4 | Z5: 4 | AA5: 35 | AB5: - | AC5: 72 | AD5: -
A6: 1 | B6: Jones, Gary | C6: N | D6: 11 | E6: - | F6: 30 | G6: 6 | H6: 5 | I6: 4 | J6: 5 | K6: 5 | L6: 5 | M6: 4 | N6: 6 | O6: 6 | P6: 46 | Q6: 40.5 | R6: 4 | S6: 4 | T6: 4 | U6: 3 | V6: 5 | W6: 3 | X6: 4 | Y6: 5 | Z6: 5 | AA6: 37 | AB6: 31.5 | AC6: 83 | AD6: 72
A7: 2 | B7: Jones, Trenton | C7: N | D7: - | E7: - | F7: 43 | G7: 6 | H7: 7 | I7: 5 | J7: 6 | K7: 5 | L7: 6 | M7: 5 | N7: 5 | O7: 5 | P7: 50 | Q7: - | R7: 3 | S7: 5 | T7: 8 | U7: 5 | V7: 4 | W7: 4 | X7: 9 | Y7: 6 | Z7: 6 | AA7: 50 | AB7: - | AC7: 100 | AD7: -
A8: 3 | B8: Iwashita, Zachary | C8: N | D8: -4 | E8: - | F8: - | G8: 4 | H8: 4 | I8: 3 | J8: 4 | K8: 3 | L8: 3 | M8: 5 | N8: 3 | O8: 5 | P8: 34 | Q8: 36 | R8: 5 | S8: 3 | T8: 4 | U8: 5 | V8: 4 | W8: 2 | X8: 4 | Y8: 4 | Z8: 3 | AA8: 34 | AB8: 36 | AC8: 68 | AD8: 72
A9: 4 | B9: Henriksen, Will | C9: N | D9: - | E9: - | G9: 7 | H9: 6 | I9: 4 | J9: 6 | K9: 5 | L9: 5 | M9: 6 | N9: 6 | O9: 6 | P9: 51 | Q9: - | R9: 5 | S9: 4 | T9: 5 | U9: 4 | V9: 5 | W9: 4 | X9: 4 | Y9: 5 | Z9: 4 | AA9: 40 | AB9: - | AC9: 91 | AD9: -
A10: 5 | B10: Havstad, Steve | C10: B | D10: 10 | E10: 4 and 2 | F10: 34 | G10: 5 | H10: 4 | I10: 3 | J10: 4 | K10: 7 | L10: 5 | M10: 8 | N10: 7 | O10: 6 | P10: 49 | Q10: 44 | R10: 4 | S10: 3 | T10: 5 | U10: 5 | V10: 7 | W10: 4 | X10: 5 | Y10: 5 | Z10: 5 | AA10: 43 | AB10: 38 | AC10: 92 | AD10: 82
A11: 6 | B11: Mariano, Joe | C11: BI | D11: 16 | E11: lost | F11: 69 | G11: 6 | H11: 6 | I11: 4 | J11: 5 | K11: 5 | L11: 8 | M11: 5 | N11: 6 | O11: 6 | P11: 51 | Q11: 43 | R11: 6 | S11: 4 | T11: 5 | U11: 5 | V11: 6 | W11: 5 | X11: 7 | Y11: 5 | Z11: 5 | AA11: 48 | AB11: 40 | AC11: 99 | AD11: 83
A12: 7 | B12: Stafford, Damian | C12: N | D12: - | E12: - | F12: 40 | G12: 8 | H12: 5 | I12: 4 | J12: 7 | K12: 10 | L12: 5 | M12: 7 | N12: 8 | O12: 6 | P12: 60 | Q12: - | R12: 6 | S12: 4 | T12: 4 | U12: 5 | V12: 8 | W12: 4 | X12: 7 | Y12: 5 | Z12: 5 | AA12: 48 | AB12: - | AC12: 108 | AD12: -
A13: 8 | B13: Kozachenko, Jon | C13: N | D13: 13 | E13: - | F13: 33 | G13: 6 | H13: 4 | I13: 6 | J13: 5 | K13: 5 | L13: 4 | M13: 4 | N13: 5 | O13: 5 | P13: 44 | Q13: 37.5 | R13: 5 | S13: 4 | T13: 4 | U13: 3 | V13: 6 | W13: 4 | X13: 4 | Y13: 5 | Z13: 5 | AA13: 40 | AB13: 33.5 | AC13: 84 | AD13: 71
A14: 9 | B14: Escobedo, Marco | C14: B | D14: 5 | E14: AS | F14: 27 | G14: 6 | H14: 5 | I14: 4 | J14: 4 | K14: 3 | L14: 4 | M14: 7 | N14: 6 | O14: 4 | P14: 43 | Q14: 40.5 | R14: 5 | S14: 4 | T14: 3 | U14: 3 | V14: 6 | W14: 3 | X14: 5 | Y14: 4 | Z14: 4 | AA14: 37 | AB14: 34.5 | AC14: 80 | AD14: 75
A15: 10 | B15: Cordova, Stephen | C15: BI | D15: 16 | E15: AS | F15: 37 | G15: 6 | H15: 6 | I15: 4 | J15: 4 | K15: 6 | L15: 5 | M15: 5 | N15: 6 | O15: 5 | P15: 47 | Q15: 39 | R15: 5 | S15: 5 | T15: 4 | U15: 4 | V15: 5 | W15: 3 | X15: 6 | Y15: 5 | Z15: 7 | AA15: 44 | AB15: 36 | AC15: 91 | AD15: 75
A16: 11 | B16: Escobedo, Sergio | C16: N | D16: 17 | E16: - | F16: 41 | G16: 7 | H16: 7 | I16: 7 | J16: 4 | K16: 8 | L16: 5 | M16: 5 | N16: 7 | O16: 8 | P16: 58 | Q16: 49.5 | R16: 6 | S16: 6 | T16: 8 | U16: 6 | V16: 8 | W16: 4 | X16: 7 | Y16: 7 | Z16: 6 | AA16: 58 | AB16: 49.5 | AC16: 116 | AD16: 99
A17: 12 | B17: Tenorio, Noe | C17: N | D17: 17 | E17: - | F17: 28 | G17: 7 | H17: 5 | I17: 4 | J17: 4 | K17: 6 | L17: 4 | M17: 4 | N17: 5 | O17: 7 | P17: 46 | Q17: 37.5 | R17: 5 | S17: 4 | T17: 4 | U17: 5 | V17: 4 | W17: 2 | X17: 5 | Y17: 3 | Z17: 6 | AA17: 38 | AB17: 29.5 | AC17: 84 | AD17: 67
A18: 13 | B18: Rose, Steven | C18: N | D18: 6 | E18: - | F18: 32 | G18: 5 | H18: 5 | I18: 4 | J18: 5 | K18: 4 | L18: 5 | M18: 4 | N18: 5 | O18: 5 | P18: 42 | Q18: 39 | R18: 6 | S18: 4 | T18: 4 | U18: 4 | V18: 5 | W18: 4 | X18: 4 | Y18: 7 | Z18: 4 | AA18: 42 | AB18: 39 | AC18: 84 | AD18: 78
A19: 14 | B19: Wiblin, Brent | C19: N | D19: - | E19: - | F19: 34 | G19: 7 | H19: 4 | I19: 5 | J19: 4 | K19: 6 | L19: 5 | M19: 5 | N19: 6 | O19: 4 | P19: 46 | Q19: - | R19: 5 | S19: 5 | T19: 4 | U19: 5 | V19: 6 | W19: 3 | X19: 5 | Y19: 4 | Z19: 5 | AA19: 42 | AB19: - | AC19: 88 | AD19: -
A20: 15 | B20: Rose, Jack | C20: N | D20: -1 | E20: - | F20: 34 | G20: 6 | H20: 6 | I20: 5 | J20: 5 | K20: 4 | L20: 6 | M20: 5 | N20: 5 | O20: 4 | P20: 46 | Q20: 46.5 | R20: 3 | S20: 3 | T20: 3 | U20: 3 | V20: 4 | W20: 4 | X20: 5 | Y20: 4 | Z20: 3 | AA20: 32 | AB20: 32.5 | AC20: 78 | AD20: 79
A21: 16 | B21: Escobedo, Hector | C21: N | D21: 6 | E21: - | F21: 27 | G21: 5 | H21: 5 | I21: 4 | J21: 5 | K21: 3 | L21: 5 | M21: 5 | N21: 4 | O21: 5 | P21: 41 | Q21: 38 | R21: 4 | S21: 4 | T21: 4 | U21: 4 | V21: 4 | W21: 4 | X21: 4 | Y21: 4 | Z21: 5 | AA21: 37 | AB21: 34 | AC21: 78 | AD21: 72

Sheet Skins - CP's
A1: HACK ATTACK GOLF CLUB | D1: Wilson Golf Course
A2: Skins & Closest-to-the-Pins | D2: 2023-11-04
A3: No. | B3: Flight | C3: Player | D3: Front Hole No. / Par | M3: Back Hole No. / Par
D4: 1 | E4: 2 | F4: 3 | G4: 4 | H4: 5 | I4: 6 | J4: 7 | K4: 8 | L4: 9 | M4: 10 | N4: 11 | O4: 12 | P4: 13 | Q4: 14 | R4: 15 | S4: 16 | T4: 17 | U4: 18
D5: 5 | E5: 4 | F5: 3 | G5: 4 | H5: 4 | I5: 4 | J5: 4 | K5: 4 | L5: 5 | M5: 4 | N5: 3 | O5: 4 | P5: 4 | Q5: 5 | R5: 3 | S5: 4 | T5: 4 | U5: 4
A6: 1 | B6: A | C6: Jones, Gary | P6: 3
A7: 2 | C7: Iwashita, Zachary | D7: 4 | H7: 3 | I7: 3 | K7: 3 | Q7: 4 | R7: 2 | U7: 3
A8: 3 | C8: Havstad, Steve
A9: 4 | C9: Kozachenko, Jon | P9: 3
A10: 5 | C10: Escobedo, Marco | H10: 3 | L10: 4 | O10: 3 | P10: 3
A11: 6 | C11: Rose, Steven
A12: 7 | C12: Rose, Jack | L12: 4 | M12: 3 | O12: 3 | P12: 3 | Q12: 4 | U12: 3
A13: 8 | C13: Escobedo, Hector | H13: 3 | Q13: 4
A14: 9
A15: 10
A16: 11
A17: 12
A18: 13
A19: 14
A20: 15
A21: 16
A22: 17
A23: 18
A24: 19
A25: 20
A26: 21
A27: 22
A28: 23
A29: 24
A30: 25
A31: 26
A32: 27
A33: 28
A34: 29
A35: 30
A36: 31
A37: 32
A38: 33
A39: 34
A40: 35
A41: 36
A42: 37
A43: 38
A44: 39
A45: 40
A46: 41
A47: 42
A48: 43
A49: 44
A50: 45
A51: 46
A52: 47
A53: 48
A54: 49
A55: 50
C56: SKINS (S) | D56: S | I56: S | K56: S | M56: S | R56: S
A57: 1 | B57: B | C57: Mariano, Joe
A58: 2 | C58: Cordova, Stephen
A59: 3 | C59: Escobedo, Sergio
A60: 4 | C60: Tenorio, Noe | Q60: 4 | R60: 2 | T60: 3
A61: 5
A62: 6
A63: 7
A64: 8
A65: 9
A66: 10
A67: 11
A68: 12
A69: 13
A70: 14
A71: 15
A72: 16
A73: 17
A74: 18
A75: 19
A76: 20
A77: 21
A78: 22
A79: 23
A80: 24
A81: 25
A82: 26
A83: 27
A84: 28
A85: 29
A86: 30
A87: 31
A88: 32
A89: 33
A90: 34
A91: 35
A92: 36
A93: 37
A94: 38
A95: 39
A96: 40
A97: 41
A98: 42
A99: 43
A100: 44
A101: 45
A102: 46
A103: 47
A104: 48
A105: 49
A106: 50
C107: SKINS (S) | Q107: S | R107: S | T107: S
A108: 1 | B108: CP's | C108: Jones, Trenton
A109: 2 | C109: Henriksen, Will
A110: 3 | C110: Stafford, Damian
A111: 4 | C111: Wiblin, Brent
A112: 5
A113: 6
A114: 7
A115: 8
A116: 9
A117: 10
A118: 11
A119: 12
A120: 13
A121: 14
A122: 15
A123: 16
A124: 17
A125: 18
A126: 19
A127: 20
A128: 21
A129: 22
A130: 23
A131: 24
A132: 25
A133: 26
A134: 27
A135: 28
A136: 29
A137: 30
A138: 31
A139: 32
A140: 33
A141: 34
A142: 35
A143: 36
A144: 37
A145: 38
A146: 39
A147: 40
A148: 41
A149: 42
A150: 43
A151: 44
A152: 45
A153: 46
A154: 47
A155: 48
A156: 49
A157: 50
B159: Symbol represents "Skin" | J159: Symbol represents "Closest-to-the-Pin"
